fUST/lending_fUST_20250902
["ID","MTS","AMOUNT","RATE_DAILY","PERIOD"]
[382837988,1756752665685,-548.87,0.00015616,2]
[382837991,1756752665694,-480.0,0.00015616,2]
[382837993,1756752665706,-480.0,0.00015616,2]
[382837995,1756752665715,-593.38598072,0.00015616,2]
[382837997,1756752665725,-667.0,0.00015616,2]
[382837999,1756752665737,-480.0,0.00015616,2]
[382838001,1756752665750,-480.0,0.00015616,2]
[382838003,1756752665761,-480.0,0.00015616,2]
[382838005,1756752665770,-480.0,0.00015616,2]
[382838007,1756752665779,-615.05,0.00015616,2]
[382838009,1756752665792,-753.09,0.00015616,2]
[382838011,1756752665802,-480.0,0.00015616,2]
[382838013,1756752665812,-2266.56,0.00015616,2]
[382838015,1756752665821,-480.0,0.00015616,2]
[382838017,1756752665832,-920.79,0.00015616,2]
[382838019,1756752665842,-694.03,0.00015616,2]
[382838021,1756752665852,-564.46,0.00015616,2]
[382838023,1756752665861,-3115.4,0.00015616,2]
[382838025,1756752665871,-480.0,0.00015616,2]
[382838027,1756752665880,-1162.68,0.00015616,2]
[382838029,1756752665889,-571.48,0.00015616,2]
[382838031,1756752665899,-480.0,0.00015616,2]
[382838033,1756752665909,-1242.4,0.00015616,2]
[382838035,1756752665919,-480.0,0.00015616,2]
[382838037,1756752665928,-480.0,0.00015616,2]
[382838040,1756752665939,-480.0,0.00015616,2]
[382838042,1756752665948,-616.55,0.00015616,2]
[382838044,1756752665958,-599.05,0.00015616,2]
[382838046,1756752665967,-480.0,0.00015616,2]
[382838048,1756752665979,-314.72711787,0.00015616,2]
[382838050,1756752665989,-738.71,0.00015616,2]
[382838052,1756752666000,-1484.02,0.00015616,2]
[382838054,1756752666010,-594.72,0.00015616,2]
[382838056,1756752666019,-480.0,0.00015616,2]
[382838058,1756752666029,-5123.42,0.00015616,2]
[382838060,1756752666038,-1779.12,0.00015616,2]
[382838062,1756752666048,-480.0,0.00015616,2]
[382838064,1756752666057,-480.0,0.00015616,2]
[382838066,1756752666067,-480.0,0.00015616,2]
[382838068,1756752666076,-682.83,0.00015616,2]
[382838070,1756752666086,-626.08,0.00015616,2]
[382838072,1756752666096,-480.0,0.00015616,2]
[382838074,1756752666106,-626.41,0.00015616,2]
[382838076,1756752666116,-1236.9,0.00015616,2]
[382838078,1756752666126,-685.05,0.00015616,2]
[382838081,1756752666137,-480.0,0.00015616,2]
[382838083,1756752666147,-97.00734751,0.00015616,2]
[382838167,1756752666967,-480.0,0.00013698,2]
[382838169,1756752666977,-480.0,0.00013698,2]
[382838171,1756752666986,-480.0,0.00013698,2]
[382838173,1756752666996,-480.0,0.00013698,2]
[382838192,1756752667162,-151.0,0.00013699,2]
[382838194,1756752667173,-166.3032,0.00013699,2]
[382838197,1756752667183,-166.3032,0.00013699,2]
[382838198,1756752667192,-223.864832,0.00013699,2]
[382838201,1756752667201,-166.3032,0.00013699,2]
[382838203,1756752667211,-166.3032,0.00013699,2]
[382838205,1756752667221,-166.3032,0.00013699,2]
[382838206,1756752667230,-166.3032,0.00013699,2]
[382838209,1756752667239,-166.3032,0.00013699,2]
[382838211,1756752667249,-166.3032,0.00013699,2]
[382838213,1756752667258,-166.3032,0.00013699,2]
[382838214,1756752667267,-166.3032,0.00013699,2]
[382838216,1756752667276,-166.3032,0.00013699,2]
[382838218,1756752667286,-166.3032,0.00013699,2]
[382838220,1756752667295,-166.3032,0.00013699,2]
[382838222,1756752667304,-166.3032,0.00013699,2]
[382838225,1756752667314,-480.0,0.00013972,2]
[382838227,1756752667324,-313.85714618,0.00013972,2]
[382838229,1756752667333,-181.69,0.00013972,2]
[382838231,1756752667342,-480.0,0.00014246,2]
[382838232,1756752667352,-480.0,0.0001452,2]
[382838235,1756752667361,-480.0,0.00014794,2]
[382838237,1756752667371,-196.0,0.00014904,2]
[382838239,1756752667381,-480.0,0.00015068,2]
[382838241,1756752667390,-480.0,0.00015342,2]
[382838243,1756752667400,-459.93265249,0.00015616,2]
[382838245,1756752667409,-480.0,0.00015616,2]
[382838247,1756752667418,-631.68,0.00015616,2]
[382838249,1756752667427,-480.0,0.00015616,2]
[382838251,1756752667436,-480.0,0.00015616,2]
[382838253,1756752667446,-750.73,0.00015616,2]
[382838255,1756752667455,-480.0,0.00015616,2]
[382838256,1756752667464,-819.12,0.00015616,2]
[382838258,1756752667473,-2712.41736838,0.00015616,2]
[382839362,1756752793317,3000.0,0.00025,30]
[382839365,1756753057934,1000.0,0.00025,30]
[382839367,1756753303180,300.0,0.00012894,2]
[382839368,1756753326779,300.0,0.00012894,2]
[382839369,1756753349420,300.0,0.00012894,2]
[382839393,1756753781640,506886.46534851,0.00030197,60]
[382839426,1756753832296,-153.0719112,0.00013327,2]
[382839428,1756753832306,-153.0719112,0.00013598,2]
[382839430,1756753832316,-1200.0,0.00013671,2]
[382839432,1756753832325,-254.96311072,0.00013672,2]
[382839434,1756753832337,-561.01946318,0.00013672,2]
[382839437,1756753832349,-294.0174261,0.00013672,2]
[382839439,1756753832359,-300.0,0.00013672,2]
[382839441,1756753832369,-500.0,0.00013673,2]
[382839443,1756753832378,-500.0,0.00013673,2]
[382839445,1756753832388,-500.0,0.00013673,2]
[382839447,1756753832397,-500.0,0.00013673,2]
[382839449,1756753832407,-500.0,0.00013673,2]
[382839451,1756753832416,-500.0,0.00013673,2]
[382839453,1756753832425,-500.0,0.00013673,2]
[382839455,1756753832435,-500.0,0.00013673,2]
[382839457,1756753832445,-500.0,0.00013673,2]
[382839459,1756753832454,-251.01573753,0.00013673,2]
[382839461,1756753832466,-248.98426247,0.00013673,2]
[382839463,1756753832476,-17.08207948,0.00013673,2]
[382839466,1756753832492,-360.61793491,0.00013673,2]
[382839468,1756753832502,-500.0,0.00013673,2]
[382839470,1756753832511,-502.59937839,0.00013673,2]
[382839472,1756753832520,-500.0,0.00013673,2]
[382839474,1756753832531,-500.0,0.00013673,2]
[382839476,1756753832540,-501.53040005,0.00013673,2]
[382839478,1756753832549,-500.0,0.00013673,2]
[382839480,1756753832558,-500.0,0.00013673,2]
[382839482,1756753832568,-591.62131034,0.00013673,2]
[382839484,1756753832577,-490.67003203,0.00013673,2]
[382839486,1756753832587,-500.0,0.00013673,2]
[382839488,1756753832597,-500.0,0.00013673,2]
[382839490,1756753832606,-212.82290861,0.00013673,2]
[382839492,1756753832615,-500.0,0.00013673,2]
[382839494,1756753832624,-500.0,0.00013673,2]
[382839496,1756753832634,-500.0,0.00013673,2]
[382839498,1756753832644,-555.17663406,0.00013673,2]
[382839500,1756753832653,-500.0,0.00013673,2]
[382839501,1756753832662,-500.0,0.00013673,2]
[382839503,1756753832672,-500.0,0.00013673,2]
[382839505,1756753832681,-500.0,0.00013673,2]
[382839507,1756753832691,-500.0,0.00013673,2]
[382839509,1756753832701,-500.0,0.00013673,2]
[382839511,1756753832710,-476.6191054,0.00013673,2]
[382839513,1756753832719,-367.51569067,0.00013673,2]
[382839515,1756753832728,-500.85274947,0.00013673,2]
[382839517,1756753832738,-500.0,0.00013673,2]
[382839519,1756753832747,-227.92452543,0.00013673,2]
[382839521,1756753832756,-500.0,0.00013673,2]
[382839523,1756753832765,-500.0,0.00013673,2]
[382839525,1756753832775,-500.0,0.00013673,2]
[382839527,1756753832784,-252.44391793,0.00013673,2]
[382839528,1756753832793,-500.0,0.00013673,2]
[382839529,1756753832806,-168.27027777,0.00013673,2]
[382839530,1756753832815,-322.51397681,0.00013673,2]
[382839531,1756753832826,-500.0,0.00013673,2]
[382839532,1756753832834,-500.0,0.00013673,2]
[382839533,1756753832843,-500.0,0.00013673,2]
[382839534,1756753832856,-500.0,0.00013673,2]
[382839535,1756753832870,-43.29975424,0.0001369,2]
[382839679,1756753838381,-107.70024576,0.0001369,2]
[382839682,1756753838390,-187.78006525,0.0001369,2]
[382839684,1756753838400,-500.0,0.00013697,2]
[382839686,1756753838410,-311.05496205,0.00013697,2]
[382839688,1756753838421,-188.94503795,0.00013697,2]
[382839690,1756753838431,-508.49346065,0.00013697,2]
[382839692,1756753838440,-500.0,0.00013697,2]
[382839694,1756753838450,-500.0,0.00013697,2]
[382839696,1756753838460,-500.0,0.00013697,2]
[382839698,1756753838469,-176.10384518,0.00013697,2]
[382839700,1756753838480,-186.23376057,0.00013697,2]
[382839702,1756753838489,-203.76548717,0.00013697,2]
[382841351,1756753855648,300.7028476,0.00012826,2]
[382849518,1756754257084,738.53282814,0.00012931,2]
[382849547,1756754686437,8060.77432426,0.00012,2]
[382849548,1756754686459,10000.01,0.00012,2]
[382849549,1756754686480,1939.21567574,0.00012,2]
[382849562,1756754718015,604.93,0.00012329,2]
[382849565,1756754728556,625.1,0.00012329,2]
[382849567,1756754739022,520.92,0.00012329,2]
[382849569,1756754749461,434.1,0.00012329,2]
[382849571,1756754759869,361.75,0.00012329,2]
[382849573,1756754770263,301.46,0.00012329,2]
[382849577,1756754780752,251.22,0.00012329,2]
[382849578,1756754791439,209.35,0.00012329,2]
[382849580,1756754801839,174.45,0.00012329,2]
[382849581,1756754812499,872.3,0.00012329,2]
[382849642,1756755038325,-1192.05317168,0.00013186,2]
[382849643,1756755038335,-687.89682296,0.00013498,2]
[382849644,1756755038346,-504.15634872,0.00013498,2]
[382849645,1756755038355,-300.0,0.00013596,2]
[382849646,1756755038369,-199.32365128,0.00013596,2]
[382849647,1756755038385,-1000.67634872,0.00013596,2]
[382849648,1756755038397,-327.99541825,0.00013597,2]
[382849649,1756755038409,-500.0,0.00013597,2]
[382849650,1756755038421,-500.0,0.00013597,2]
[382849651,1756755038434,-626.57924725,0.00013597,2]
[382849652,1756755038447,-167.61038452,0.00013597,2]
[382849653,1756755038458,-952.70700667,0.00013598,2]
[382849654,1756755038468,-153.07191116,0.00013598,2]
[382849655,1756755038480,-135307.89263714,0.00013598,2]
[382849656,1756755038491,-1000.0,0.00013598,2]
[382849657,1756755038503,-500.0,0.00013673,2]
[382849658,1756755038518,-500.0,0.00013673,2]
[382849659,1756755038529,-500.0,0.00013673,2]
[382849660,1756755038541,-500.0,0.00013673,2]
[382849661,1756755038554,-169.9133702,0.00013673,2]
[382849662,1756755038564,-500.0,0.00013673,2]
[382849663,1756755038576,-151.0,0.0001369,2]
[382849664,1756755038587,-480.0,0.00013698,2]
[382849665,1756755038599,-481.15534516,0.00013698,2]
[382849666,1756755038611,-480.0,0.00013698,2]
[382849667,1756755038623,-485.83622797,0.00013698,2]
[382849668,1756755038634,-480.0,0.00013698,2]
[382849669,1756755038645,-480.0,0.00013698,2]
[382849670,1756755038660,-480.0,0.00013698,2]
[382849671,1756755038671,-500.0,0.00013698,2]
[382849672,1756755038682,-500.0,0.00013698,2]
[382849673,1756755038693,-500.0,0.00013698,2]
[382849674,1756755038704,-480.0,0.00013698,2]
[382849675,1756755038716,-480.0,0.00013698,2]
[382849676,1756755038728,-480.0,0.00013698,2]
[382849677,1756755038741,-480.0,0.00013698,2]
[382849678,1756755038751,-480.0,0.00013698,2]
[382849679,1756755038762,-480.0,0.00013698,2]
[382849680,1756755038773,-480.0,0.00013698,2]
[382849681,1756755038782,-480.0,0.00013698,2]
[382849682,1756755038792,-480.0,0.00013698,2]
[382849683,1756755038802,-480.0,0.00013698,2]
[382849684,1756755038815,-480.0,0.00013698,2]
[382849685,1756755038824,-480.0,0.00013698,2]
[382849686,1756755038835,-480.0,0.00013698,2]
[382849687,1756755038846,-480.0,0.00013698,2]
[382849688,1756755038858,-480.0,0.00013698,2]
[382849689,1756755038869,-480.0,0.00013698,2]
[382849690,1756755038881,-480.0,0.00013698,2]
[382849691,1756755038892,-480.0,0.00013698,2]
[382849692,1756755038903,-480.0,0.00013698,2]
[382849693,1756755038914,-480.0,0.00013698,2]
[382849694,1756755038929,-1000.0,0.00013698,2]
[382849695,1756755038941,-480.0,0.00013698,2]
[382849696,1756755038962,-480.0,0.00013698,2]
[382849697,1756755038973,-480.0,0.00013698,2]
[382849698,1756755038983,-607.06,0.00013698,2]
[382849699,1756755038993,-480.0,0.00013698,2]
[382849700,1756755039003,-480.0,0.00013698,2]
[382849701,1756755039013,-480.0,0.00013698,2]
[382849702,1756755039023,-480.0,0.00013698,2]
[382849703,1756755039034,-480.0,0.00013698,2]
[382849704,1756755039046,-480.0,0.00013698,2]
[382849705,1756755039058,-480.0,0.00013698,2]
[382849706,1756755039069,-480.66803806,0.00013698,2]
[382849707,1756755039084,-480.0,0.00013698,2]
[382849708,1756755039094,-480.0,0.00013698,2]
[382849709,1756755039104,-480.0,0.00013698,2]
[382849710,1756755039115,-566.59,0.00013698,2]
[382849711,1756755039126,-480.0,0.00013698,2]
[382849712,1756755039137,-480.0,0.00013698,2]
[382849713,1756755039148,-488.17346423,0.00013698,2]
[382849714,1756755039160,-480.0,0.00013698,2]
[382849715,1756755039170,-480.0,0.00013698,2]
[382849716,1756755039182,-480.0,0.00013698,2]
[382849717,1756755039192,-480.0,0.00013698,2]
[382849718,1756755039203,-480.0,0.00013698,2]
[382849719,1756755039213,-480.0,0.00013698,2]
[382849720,1756755039224,-480.0,0.00013698,2]
[382849721,1756755039235,-480.0,0.00013698,2]
[382849722,1756755039246,-480.0,0.00013698,2]
[382849723,1756755039256,-480.0,0.00013698,2]
[382849724,1756755039269,-480.0,0.00013698,2]
[382849725,1756755039279,-582.46,0.00013698,2]
[382849726,1756755039290,-480.0,0.00013698,2]
[382849727,1756755039300,-480.0,0.00013698,2]
[382849728,1756755039311,-480.0,0.00013698,2]
[382849729,1756755039321,-480.0,0.00013698,2]
[382849730,1756755039332,-480.0,0.00013698,2]
[382849731,1756755039343,-480.0,0.00013698,2]
[382849732,1756755039354,-528.45,0.00013698,2]
[382849733,1756755039364,-480.0,0.00013698,2]
[382849734,1756755039375,-480.0,0.00013698,2]
[382849735,1756755039386,-480.0,0.00013698,2]
[382849736,1756755039396,-480.0,0.00013698,2]
[382849737,1756755039407,-480.0,0.00013698,2]
[382849738,1756755039419,-480.0,0.00013698,2]
[382849739,1756755039430,-480.0,0.00013698,2]
[382849740,1756755039441,-480.0,0.00013698,2]
[382849741,1756755039451,-480.0,0.00013698,2]
[382849742,1756755039461,-480.0,0.00013698,2]
[382849743,1756755039472,-480.0,0.00013698,2]
[382849744,1756755039484,-480.0,0.00013698,2]
[382849745,1756755039494,-480.0,0.00013698,2]
[382849746,1756755039505,-480.0,0.00013698,2]
[382849747,1756755039516,-358.38484674,0.00013698,2]
[382849748,1756755039527,-480.0,0.00013698,2]
[382849749,1756755039538,-480.0,0.00013698,2]
[382849750,1756755039548,-480.0,0.00013698,2]
[382849751,1756755039559,-480.0,0.00013698,2]
[382849752,1756755039569,-480.0,0.00013698,2]
[382849753,1756755039580,-480.0,0.00013698,2]
[382849754,1756755039590,-480.0,0.00013698,2]
[382849755,1756755039601,-480.0,0.00013698,2]
[382849756,1756755039611,-480.0,0.00013698,2]
[382849757,1756755039622,-480.0,0.00013698,2]
[382849758,1756755039633,-480.0,0.00013698,2]
[382849759,1756755039645,-480.0,0.00013698,2]
[382849760,1756755039657,-480.0,0.00013698,2]
[382849761,1756755039668,-480.0,0.00013698,2]
[382849762,1756755039678,-480.0,0.00013698,2]
[382849763,1756755039689,-480.0,0.00013698,2]
[382849764,1756755039700,-480.0,0.00013698,2]
[382849765,1756755039710,-480.0,0.00013698,2]
[382849766,1756755039721,-480.0,0.00013698,2]
[382849767,1756755039733,-480.0,0.00013698,2]
[382849768,1756755039744,-480.0,0.00013698,2]
[382849769,1756755039754,-480.0,0.00013698,2]
[382849770,1756755039764,-480.0,0.00013698,2]
[382849771,1756755039774,-480.0,0.00013698,2]
[382849772,1756755039785,-480.0,0.00013698,2]
[382849773,1756755039796,-481.41521218,0.00013698,2]
[382849774,1756755039807,-480.0,0.00013698,2]
[382849775,1756755039817,-480.6113791,0.00013698,2]
[382849776,1756755039828,-480.0,0.00013698,2]
[382849777,1756755039840,-480.0,0.00013698,2]
[382849778,1756755039850,-480.0,0.00013698,2]
[382849779,1756755039863,-480.0,0.00013698,2]
[382849780,1756755039874,-480.0,0.00013698,2]
[382849781,1756755039886,-480.0,0.00013698,2]
[382849782,1756755039897,-480.0,0.00013698,2]
[382849783,1756755039908,-518.43,0.00013698,2]
[382849784,1756755039919,-945.06,0.00013698,2]
[382849785,1756755039930,-480.0,0.00013698,2]
[382849786,1756755039941,-480.0,0.00013698,2]
[382849787,1756755039952,-518.25,0.00013698,2]
[382849788,1756755039963,-480.0,0.00013698,2]
[382849789,1756755039973,-480.0,0.00013698,2]
[382849790,1756755039983,-480.0,0.00013698,2]
[382849791,1756755039994,-480.0,0.00013698,2]
[382849792,1756755040004,-480.0,0.00013698,2]
[382849793,1756755040015,-480.0,0.00013698,2]
[382849794,1756755040025,-480.0,0.00013698,2]
[382849795,1756755040036,-480.0,0.00013698,2]
[382849796,1756755040047,-480.0,0.00013698,2]
[382849797,1756755040058,-480.0,0.00013698,2]
[382849798,1756755040069,-480.0,0.00013698,2]
[382849799,1756755040079,-480.0,0.00013698,2]
[382849800,1756755040089,-526.4,0.00013698,2]
[382849801,1756755040100,-480.0,0.00013698,2]
[382849802,1756755040110,-486.7,0.00013698,2]
[382849803,1756755040120,-480.0,0.00013698,2]
[382849804,1756755040130,-504.88,0.00013698,2]
[382849805,1756755040140,-218.0878044,0.00013698,2]
[382849806,1756755040150,-480.0,0.00013698,2]
[382849807,1756755040160,-480.0,0.00013698,2]
[382849808,1756755040170,-480.0,0.00013698,2]
[382849809,1756755040180,-595.34,0.00013698,2]
[382849810,1756755040191,-480.0,0.00013698,2]
[382849811,1756755040202,-480.0,0.00013698,2]
[382849812,1756755040212,-480.0,0.00013698,2]
[382849813,1756755040222,-480.0,0.00013698,2]
[382849814,1756755040232,-480.0,0.00013698,2]
[382849815,1756755040242,-480.0,0.00013698,2]
[382849816,1756755040252,-480.0,0.00013698,2]
[382849817,1756755040262,-480.0,0.00013698,2]
[382849818,1756755040271,-480.0,0.00013698,2]
[382849819,1756755040281,-480.0,0.00013698,2]
[382849820,1756755040291,-381.74958726,0.00013698,2]
[382849821,1756755040302,-480.0,0.00013698,2]
[382849822,1756755040311,-480.0,0.00013698,2]
[382849823,1756755040322,-480.0,0.00013698,2]
[382849824,1756755040333,-480.0,0.00013698,2]
[382849825,1756755040343,-480.0,0.00013698,2]
[382849826,1756755040353,-480.0,0.00013698,2]
[382849827,1756755040363,-480.0,0.00013698,2]
[382849828,1756755040374,-480.0,0.00013698,2]
[382849829,1756755040384,-480.0,0.00013698,2]
[382849830,1756755040394,-480.0,0.00013698,2]
[382849831,1756755040403,-480.0,0.00013698,2]
[382849832,1756755040414,-480.0,0.00013698,2]
[382849833,1756755040424,-423.69954606,0.00013698,2]
[382849834,1756755040434,-480.0,0.00013698,2]
[382849835,1756755040444,-480.0,0.00013698,2]
[382849836,1756755040454,-480.0,0.00013698,2]
[382849837,1756755040464,-480.0,0.00013698,2]
[382849838,1756755040474,-563.16773665,0.00013698,2]
[382849839,1756755040484,-480.0,0.00013698,2]
[382849840,1756755040493,-480.0,0.00013698,2]
[382849841,1756755040502,-480.0,0.00013698,2]
[382849842,1756755040512,-480.0,0.00013698,2]
[382849843,1756755040524,-480.0,0.00013698,2]
[382849844,1756755040533,-480.0,0.00013698,2]
[382849845,1756755040543,-480.0,0.00013698,2]
[382849849,1756755040797,-480.0,0.00013698,2]
[382849851,1756755040807,-480.0,0.00013698,2]
[382849853,1756755040817,-480.0,0.00013698,2]
[382849855,1756755040826,-524.8,0.00013698,2]
[382849857,1756755040836,-165.65810143,0.00013698,2]
[382849860,1756755040856,-314.34189857,0.00013698,2]
[382849862,1756755040866,-456.10223806,0.00013698,2]
[382849864,1756755040875,-480.0,0.00013698,2]
[382849866,1756755040885,-480.0,0.00013698,2]
[382849868,1756755040894,-480.0,0.00013698,2]
[382849870,1756755040904,-480.0,0.00013698,2]
[382849872,1756755040913,-480.0,0.00013698,2]
[382849874,1756755040922,-425.46160021,0.00013698,2]
[382849876,1756755040931,-494.44365134,0.00013698,2]
[382849878,1756755040940,-480.0,0.00013698,2]
[382849880,1756755040949,-480.0,0.00013698,2]
[382849882,1756755040958,-480.0,0.00013698,2]
[382849884,1756755040968,-480.0,0.00013698,2]
[382849886,1756755040978,-248.40032969,0.00013698,2]
[382849888,1756755040987,-480.0,0.00013698,2]
[382849890,1756755040996,-500.0,0.00013698,2]
[382849892,1756755041006,-480.0,0.00013698,2]
[382849894,1756755041015,-480.0,0.00013698,2]
[382849896,1756755041024,-480.0,0.00013698,2]
[382849898,1756755041033,-480.0,0.00013698,2]
[382849900,1756755041042,-480.0,0.00013698,2]
[382849902,1756755041051,-480.0,0.00013698,2]
[382849904,1756755041060,-480.0,0.00013698,2]
[382849906,1756755041070,-1000.0,0.00013698,2]
[382849908,1756755041079,-480.0,0.00013698,2]
[382849910,1756755041089,-480.0,0.00013698,2]
[382849912,1756755041099,-480.0,0.00013698,2]
[382849914,1756755041108,-480.0,0.00013698,2]
[382849916,1756755041118,-480.0,0.00013698,2]
[382849918,1756755041127,-480.0,0.00013698,2]
[382849920,1756755041136,-480.0,0.00013698,2]
[382849922,1756755041145,-480.0,0.00013698,2]
[382849924,1756755041155,-480.0,0.00013698,2]
[382849926,1756755041164,-480.0,0.00013698,2]
[382849928,1756755041173,-480.0,0.00013698,2]
[382849930,1756755041183,-480.0,0.00013698,2]
[382849932,1756755041193,-480.0,0.00013698,2]
[382849934,1756755041202,-480.0,0.00013698,2]
[382849936,1756755041211,-480.0,0.00013698,2]
[382849938,1756755041220,-480.0,0.00013698,2]
[382849940,1756755041229,-480.0,0.00013698,2]
[382849942,1756755041239,-480.0,0.00013698,2]
[382849943,1756755041248,-480.0,0.00013698,2]
[382849945,1756755041257,-480.0,0.00013698,2]
[382849947,1756755041266,-368.40924258,0.00013698,2]
[382849949,1756755041275,-480.0,0.00013698,2]
[382849950,1756755041284,-480.0,0.00013698,2]
[382849952,1756755041293,-480.0,0.00013698,2]
[382849954,1756755041301,-480.0,0.00013698,2]
[382849956,1756755041310,-480.0,0.00013698,2]
[382849958,1756755041319,-519.49,0.00013698,2]
[382849960,1756755041328,-480.0,0.00013698,2]
[382849962,1756755041338,-235.47441825,0.00013698,2]
[382849964,1756755041347,-480.0,0.00013698,2]
[382849966,1756755041356,-480.0,0.00013698,2]
[382849967,1756755041365,-480.0,0.00013698,2]
[382849969,1756755041374,-480.0,0.00013698,2]
[382849971,1756755041383,-151.0,0.00013698,2]
[382849973,1756755041393,-248.952943,0.00013698,2]
[382849975,1756755041402,-616.82,0.00013698,2]
[382849977,1756755041411,-480.0,0.00013698,2]
[382849979,1756755041422,-480.0,0.00013698,2]
[382849981,1756755041431,-480.0,0.00013698,2]
[382849983,1756755041440,-480.0,0.00013698,2]
[382849985,1756755041449,-480.0,0.00013698,2]
[382849987,1756755041458,-480.0,0.00013698,2]
[382849989,1756755041467,-480.0,0.00013698,2]
[382849991,1756755041476,-480.0,0.00013698,2]
[382849993,1756755041486,-480.0,0.00013698,2]
[382849994,1756755041495,-480.0,0.00013698,2]
[382849996,1756755041504,-480.0,0.00013698,2]
[382849998,1756755041513,-480.0,0.00013698,2]
[382850000,1756755041522,-480.0,0.00013698,2]
[382850002,1756755041531,-390.28077214,0.00013698,2]
[382850004,1756755041545,-122.64922786,0.00013698,2]
[382850006,1756755041554,-203.1131479,0.00013698,2]
[382850031,1756755041796,-255.00000001,0.00013698,2]
[382850616,1756755047157,-21.88685209,0.00013698,2]
[382850617,1756755047166,-480.0,0.00013698,2]
[382850618,1756755047175,-480.0,0.00013698,2]
[382850619,1756755047185,-480.0,0.00013698,2]
[382850620,1756755047194,-480.0,0.00013698,2]
[382850621,1756755047203,-480.0,0.00013698,2]
[382850622,1756755047212,-480.0,0.00013698,2]
[382850623,1756755047221,-480.0,0.00013698,2]
[382850624,1756755047230,-480.0,0.00013698,2]
[382850625,1756755047239,-549.97,0.00013698,2]
[382850626,1756755047249,-480.0,0.00013698,2]
[382850627,1756755047259,-480.0,0.00013698,2]
[382850628,1756755047268,-480.0,0.00013698,2]
[382850629,1756755047277,-480.0,0.00013698,2]
[382850630,1756755047286,-480.0,0.00013698,2]
[382850631,1756755047296,-480.0,0.00013698,2]
[382850633,1756755047305,-480.0,0.00013698,2]
[382850635,1756755047314,-492.79,0.00013698,2]
[382850637,1756755047323,-480.0,0.00013698,2]
[382850639,1756755047332,-480.0,0.00013698,2]
[382850641,1756755047342,-603.67,0.00013698,2]
[382850643,1756755047351,-480.0,0.00013698,2]
[382850645,1756755047360,-480.0,0.00013698,2]
[382850647,1756755047370,-480.0,0.00013698,2]
[382850649,1756755047379,-480.0,0.00013698,2]
[382850651,1756755047388,-480.0,0.00013698,2]
[382850653,1756755047397,-480.0,0.00013698,2]
[382850655,1756755047406,-480.0,0.00013698,2]
[382850657,1756755047415,-480.0,0.00013698,2]
[382850659,1756755047424,-480.0,0.00013698,2]
[382850661,1756755047433,-480.0,0.00013698,2]
[382850663,1756755047442,-481.00183348,0.00013698,2]
[382850665,1756755047452,-480.0,0.00013698,2]
[382850667,1756755047461,-480.0,0.00013698,2]
[382850669,1756755047470,-480.0,0.00013698,2]
[382850671,1756755047480,-480.0,0.00013698,2]
[382850673,1756755047489,-480.0,0.00013698,2]